bitfinex-derivatives/quotes_BTCF0:USTF0_20250211
["timestamp","ask_amount","ask_price","bid_price","bid_amount"]
[1739275436587,0.6659168,98035.0,98034.0,0.08162661]
[1739275436790,0.6923,98035.0,98034.0,0.06062661]
[1739275437088,0.46226,98035.0,98034.0,0.05550961]
[1739275437378,0.9662367,98035.0,98034.0,0.05550961]
[1739275437678,0.9662367,98035.0,98033.0,0.79363807]
[1739275437679,1.3270367,98035.0,98033.0,0.04376555]
[1739275437882,0.2040137,98018.0,98014.0,0.97659763]
[1739275438090,0.7216,98015.0,98014.0,0.60586488]
[1739275438379,0.2040683,97991.0,97981.0,0.74519858]
[1739275438580,0.3608,97982.0,97974.0,0.0006]
[1739275438776,0.3608,97982.0,97960.0,0.0102]
[1739275438777,0.3608,97979.0,97960.0,0.0102]
[1739275438972,0.44357896,97984.0,97960.0,0.0102]
[1739275438973,0.3608,97962.0,97960.0,0.0102]
[1739275439174,0.0706,97961.0,97943.0,0.79134281]
[1739275439385,0.0706,97961.0,97927.0,0.0102]
[1739275439386,0.2041991,97928.0,97927.0,0.0102]
[1739275439577,0.9965991,97928.0,97902.0,0.97396038]
[1739275439780,0.11974728,97912.0,97903.0,0.30608]
[1739275439982,0.3608,97904.0,97902.0,0.97396038]
[1739275440281,0.11974728,97920.0,97916.0,0.2042241]
[1739275440486,0.00015317,97925.0,97921.0,0.2042121]
[1739275440789,0.00015317,97925.0,97924.0,0.5102875]
[1739275441083,0.3608,97954.0,97940.0,0.2041722]
[1739275441277,0.3608,97954.0,97949.0,0.30608]
[1739275441471,0.3608,97954.0,97946.0,0.204161]
[1739275441677,0.3608,97954.0,97950.0,0.30608]
[1739275441879,0.3608,97954.0,97951.0,0.30608]
[1739275442080,0.11974728,97960.0,97947.0,0.2041581]
[1739275442382,0.11974728,97960.0,97921.0,0.0327]
[1739275442383,0.3608,97948.0,97943.0,0.00015317]
[1739275442584,0.3608,97961.0,97948.0,0.30608]
[1739275442778,0.00168586,97962.0,97960.0,0.5102123]
[1739275443081,0.3608,98000.0,97961.0,0.66688]
[1739275443286,0.11974728,98010.0,97987.0,0.30608]
[1739275443583,0.00060001,98009.0,98005.0,0.5648377]
[1739275443775,0.48054728,98020.0,97998.0,0.30608]
[1739275443975,0.48054728,98020.0,97999.0,1.5]
[1739275444180,0.11974728,98010.0,97995.0,0.3608]
[1739275444487,0.2040403,98005.0,97999.0,0.00015309]
[1739275445279,0.3608,98011.0,97999.0,0.00015309]
[1739275445480,0.00015309,98019.0,97999.0,0.00015309]
[1739275445481,0.46131883,98019.0,98010.0,0.30608]
[1739275445781,0.46131883,98019.0,98018.0,0.45248225]
[1739275445983,0.3608,98095.0,98059.0,0.2039255]
[1739275446279,0.3608,98095.0,98064.0,0.3608]
[1739275446280,0.17990103,98090.0,98064.0,0.3608]
[1739275446487,0.2038902,98077.0,98054.0,0.09015107]
[1739275446677,0.17990103,98070.0,98053.0,0.09015107]
[1739275446980,0.2039229,98061.0,98041.0,0.3939]
[1739275447177,0.3608,98060.0,98050.0,0.17990103]
[1739275447474,0.3608,98060.0,98052.0,0.00015301]
[1739275447973,0.3608,98060.0,98044.0,0.07513712]
[1739275448173,0.3608,98068.0,98050.0,0.54070103]
[1739275448383,1.06141941,98069.0,98064.0,0.3608]
[1739275448889,0.00015301,98071.0,98065.0,0.0624]
[1739275449085,0.3608,98082.0,98065.0,0.0624]
[1739275449393,0.3608,98081.0,98070.0,0.0305788]
[1739275449685,0.3608,98072.0,98065.0,0.0624]
[1739275449888,0.3608,98069.0,98065.0,0.0624]
[1739275450095,0.2039073,98068.0,98065.0,0.0624]
[1739275450286,0.2039497,98048.0,98030.0,0.17990103]
[1739275450482,0.7216,98042.0,98040.0,0.07616]
[1739275450682,0.7216,98042.0,98023.0,0.0764]
[1739275450885,0.7216,98024.0,98020.0,0.04211945]
[1739275451889,0.00015301,98032.0,98020.0,0.34211945]
[1739275452098,0.3608,98031.0,98020.0,0.04511945]
[1739275452393,0.3608,98022.0,98020.0,0.18290103]
[1739275452690,0.3608,98022.0,98020.0,0.003]
[1739275453079,0.001,98024.0,98020.0,0.003]
[1739275453394,0.001,98024.0,98021.0,0.07664]
[1739275453688,0.5648042,98022.0,98020.0,0.002]
[1739275454493,0.5658042,98022.0,98020.0,0.004]
[1739275454792,0.001,98022.0,98020.0,0.004]
[1739275455192,0.006,98022.0,98020.0,0.001]
[1739275455891,0.3608,98023.0,98020.0,0.001]
[1739275456092,0.3608,98023.0,98020.0,0.003]
[1739275456387,0.69166458,98021.0,98020.0,0.003]
[1739275456691,0.69166458,98021.0,98020.0,0.07952]
[1739275456893,0.33086458,98021.0,98020.0,0.07952]
[1739275457398,0.69166458,98021.0,98020.0,0.07952]
[1739275458104,0.69166458,98021.0,98020.0,0.08052]
[1739275458293,0.69166458,98021.0,98020.0,0.07952]
[1739275458478,0.69166458,98021.0,98020.0,0.08052]
[1739275458878,0.69166458,98021.0,98020.0,0.07752]
[1739275459079,1.2970437,98021.0,98020.0,0.002]
[1739275459496,1.2970437,98021.0,98018.0,0.07624]
[1739275460202,0.9362437,98021.0,98020.0,0.001]
[1739275460384,0.9362437,98021.0,98020.0,0.2049897]
[1739275460580,0.9362437,98021.0,98020.0,0.0762]
[1739275460795,0.9362437,98021.0,98020.0,0.2811897]
[1739275461093,0.9362437,98021.0,98020.0,1.7811897]
[1739275461295,0.61392287,98021.0,98020.0,1.7811897]
[1739275461493,0.61392287,98021.0,98020.0,1.5772]
[1739275461793,0.61392287,98021.0,98020.0,1.7821897]
[1739275461992,0.32232083,98030.0,98029.0,0.2039709]
[1739275462294,0.07282083,98030.0,98029.0,0.5647709]
[1739275462496,0.02292083,98030.0,98029.0,0.5647709]
[1739275462995,0.00015301,98031.0,98029.0,0.5647709]
[1739275463485,0.00015301,98031.0,98030.0,0.076]
[1739275464395,0.00015301,98031.0,98030.0,0.07592]
[1739275464594,0.00215301,98031.0,98020.0,1.8942869]
[1739275464894,0.01015301,98031.0,98021.0,0.07592]
[1739275465084,0.00915301,98031.0,98021.0,0.07592]
[1739275465293,0.3608,98022.0,98021.0,0.07592]
[1739275465606,0.3608,98022.0,98021.0,0.0758]
[1739275465797,0.36896,98022.0,98012.0,0.17990103]
[1739275465987,0.3608,98013.0,98011.0,0.00015301]
[1739275466194,0.2040063,98012.0,98011.0,0.00015301]
[1739275468100,0.2130063,98012.0,98011.0,0.00015301]
[1739275469102,0.2120063,98012.0,98011.0,0.00015301]
[1739275469688,0.2110063,98012.0,98011.0,0.00015301]
[1739275469902,0.2120063,98012.0,98011.0,0.00015301]
[1739275470402,0.2130063,98012.0,98011.0,0.00015301]
[1739275470904,0.2060063,98012.0,98011.0,0.00015301]
[1739275471090,0.2140063,98012.0,98011.0,0.00015301]
[1739275471400,0.4342884,98012.0,98011.0,0.00015301]
[1739275471693,0.2302821,98012.0,97990.0,0.16173405]
[1739275471885,0.3608,97991.0,97990.0,0.36578615]
[1739275472285,0.3608,97991.0,97990.0,1.7040521]
[1739275473097,0.3618,97991.0,97990.0,1.7040521]
[1739275473299,0.3618,97991.0,97990.0,1.7807321]
[1739275473898,0.3618,97991.0,97990.0,1.7817321]
[1739275474199,0.54523068,97991.0,97990.0,1.7817321]
[1739275474597,0.54623068,97991.0,97990.0,1.7817321]
[1739275475192,0.54623068,97991.0,97990.0,1.79218854]
[1739275477105,0.18543068,97991.0,97990.0,1.57785168]
[1739275477309,0.24166973,98004.0,98003.0,0.204025]
[1739275477499,0.36140001,98030.0,98012.0,0.2040063]
[1739275477700,0.27458798,98026.0,98014.0,0.3608]
[1739275477908,0.27458798,98026.0,98024.0,0.2039795]
[1739275478103,0.3608,98040.0,98024.0,0.2039795]
[1739275478404,0.00015301,98042.0,98034.0,0.3608]
[1739275478605,0.3608,98082.0,98039.0,0.1019]
[1739275478797,0.3608,98082.0,98081.0,0.2038627]
[1739275478993,0.3608,98094.0,98092.0,0.2038396]
[1739275479198,0.3608,98094.0,98084.0,0.17990103]
[1739275479398,0.3608,98094.0,98085.0,1.5]
[1739275479606,0.3608,98086.0,98085.0,1.5]
[1739275480010,0.3608,98086.0,98085.0,1.8]
[1739275480202,0.30867498,98098.0,98093.0,0.2038363]
[1739275480800,0.30867498,98098.0,98085.0,1.939]
[1739275481006,0.3608,98090.0,98085.0,1.57764]
[1739275481205,0.30867498,98098.0,98088.0,0.2038473]
[1739275481403,0.30867498,98098.0,98089.0,0.07672]
[1739275482006,0.31067498,98098.0,98089.0,0.07672]
[1739275482608,0.31067498,98098.0,98090.0,0.203844]
[1739275483011,0.2038295,98097.0,98089.0,0.07672]
[1739275483309,0.2038295,98097.0,98088.0,0.27684647]
[1739275483510,0.2038404,98092.0,98089.0,0.004]
[1739275483700,0.51362187,98099.0,98089.0,0.004]
[1739275483701,0.51362187,98099.0,98090.0,0.07648]
[1739275483901,0.005,98098.0,98090.0,0.07648]
[1739275484110,0.001,98097.0,98090.0,0.07648]
[1739275484709,0.2038286,98098.0,98090.0,0.07648]
[1739275485616,0.2038286,98098.0,98090.0,0.08048]
[1739275486315,0.2038286,98098.0,98090.0,0.08348]
[1739275486714,0.2038318,98096.0,98090.0,0.08348]
[1739275487012,0.36095293,98099.0,98090.0,0.08348]
[1739275487214,0.3608,98091.0,98090.0,0.007]
[1739275487517,0.3608,98091.0,98090.0,0.07812]
[1739275487814,0.3608,98091.0,98090.0,0.08112]
[1739275488220,0.3608,98091.0,98090.0,0.07912]
[1739275488516,0.3608,98091.0,98090.0,0.08312]
[1739275489107,0.3608,98091.0,98090.0,0.007]
[1739275489308,0.3608,98091.0,98079.0,0.07603293]
[1739275489510,0.5646648,98080.0,98079.0,0.07603293]
[1739275489822,0.5646648,98080.0,98079.0,0.00015293]
[1739275491022,0.5646648,98080.0,98043.0,0.68536]
[1739275491023,0.0509671,98079.0,98038.0,0.07588]
[1739275491217,0.3608,98049.0,98041.0,0.01022565]
[1739275491517,0.3608,98049.0,98044.0,0.2039383]
[1739275493523,0.3618,98049.0,98046.0,0.00652971]
[1739275494222,0.00015293,98057.0,98055.0,0.203915]
[1739275494721,0.00015293,98057.0,98056.0,0.0758]
[1739275495320,0.00015293,98057.0,98056.0,1.5758]
[1739275496222,0.00015293,98057.0,98056.0,1.5]
[1739275496421,0.00015293,98057.0,98056.0,1.57576]
[1739275496621,0.00015293,98057.0,98056.0,1.57676]
[1739275496822,0.00215293,98057.0,98056.0,1.57676]
[1739275497217,0.00215293,98057.0,98056.0,1.57876]
[1739275497817,0.00215293,98057.0,98056.0,1.57676]
[1739275498218,0.00115293,98057.0,98056.0,1.57676]
[1739275499916,0.00115293,98057.0,98056.0,1.57876]
[1739275500126,0.00215293,98057.0,98056.0,1.57876]
[1739275500429,0.00215293,98057.0,98056.0,1.57576]
[1739275500625,0.00215293,98057.0,98056.0,1.57676]
[1739275501121,0.00115293,98057.0,98056.0,1.57676]
[1739275502227,0.00115293,98057.0,98056.0,1.57776]
[1739275503425,0.00015293,98057.0,98056.0,1.57676]
[1739275503728,0.00215293,98057.0,98056.0,1.57676]
[1739275504031,0.00215293,98057.0,98056.0,1.57876]
[1739275504232,0.00015293,98057.0,98056.0,1.57876]
[1739275504530,0.00115293,98057.0,98056.0,1.57876]
[1739275505016,0.00015293,98057.0,98056.0,1.57876]
[1739275505220,0.00015293,98057.0,98056.0,1.57976]
[1739275505630,0.00015293,98057.0,98056.0,1.502]
[1739275506126,0.00015293,98057.0,98056.0,0.001]
[1739275506318,0.20406553,98057.0,98040.0,0.07528]
[1739275506524,0.5647334,98047.0,98040.0,0.07528]
[1739275506722,0.5647334,98047.0,98024.0,0.3608]
[1739275506926,0.2039501,98039.0,98034.0,0.07528]
[1739275507130,0.5647501,98039.0,98034.0,0.07528]
[1739275508421,0.5647501,98039.0,98030.0,0.17973625]
[1739275508618,0.5647501,98039.0,98034.0,0.07512]
[1739275508829,0.5647501,98039.0,98034.0,0.07508]
[1739275509736,0.5657501,98039.0,98038.0,0.00315293]
[1739275510031,0.5667501,98039.0,98038.0,0.00715293]
[1739275511830,0.2039871,98022.0,98016.0,0.2039972]
[1739275512023,0.3608,98023.0,98017.0,0.07488]
[1739275512431,0.2039544,98037.0,98024.0,0.2039801]
[1739275512637,0.3628,98039.0,98027.0,0.17973625]
[1739275512826,0.3608,98028.0,98025.0,0.2039783]
[1739275513721,0.3608,98028.0,98027.0,0.005]
[1739275514536,0.3608,98028.0,98025.0,0.2039783]
[1739275514537,0.3618,98028.0,98025.0,0.2089783]
[1739275516029,0.3608,98028.0,98023.0,0.00015302]
[1739275516337,0.3638,98028.0,98026.0,0.2039755]
[1739275517130,0.003,98028.0,98026.0,0.2039755]
[1739275517624,0.001,98028.0,98026.0,0.2039755]
[1739275517828,0.003,98028.0,98026.0,0.2039755]
[1739275519237,0.003,98028.0,98027.0,0.07448]
[1739275520423,0.003,98028.0,98027.0,0.07648]
[1739275522635,0.567773,98028.0,98023.0,0.00015302]
[1739275522835,0.3638,98028.0,98023.0,0.00015302]
[1739275523149,0.2039813,98024.0,98023.0,0.00015302]
[1739275523841,0.2039813,98024.0,98023.0,0.00215302]
[1739275525037,0.2040063,98012.0,98011.0,0.18237345]
[1739275525237,0.5648063,98012.0,98011.0,0.18237345]
[1739275526833,0.9256063,98012.0,98011.0,0.18237345]
[1739275528643,0.9256063,98012.0,98000.0,0.17973625]
[1739275528644,0.2040145,98009.0,98000.0,0.17973625]
[1739275528840,0.2040145,98009.0,97997.0,0.07428]
[1739275528841,0.36148,98012.0,97999.0,0.17973625]
[1739275529037,0.3608,98012.0,98006.0,0.2040175]
[1739275529434,0.3608,98012.0,98007.0,0.07412]
[1739275529840,0.001,98009.0,98007.0,0.278136]
[1739275531535,0.3618,98012.0,98007.0,0.278136]
[1739275531735,0.3618,98012.0,98007.0,0.07412]
[1739275532242,0.2040146,98008.0,98007.0,0.07412]
[1739275534749,0.2050146,98008.0,98007.0,0.07412]
[1739275534949,0.2050146,98008.0,98006.0,0.07376]
[1739275535640,0.2050146,98008.0,98007.0,1.5]
[1739275536040,0.2050146,98008.0,98006.0,0.07376]
[1739275540544,0.001,98008.0,98006.0,0.07376]
[1739275541946,0.2050152,98008.0,98006.0,0.07376]
[1739275544055,0.3608,98007.0,98006.0,0.07376]
[1739275545254,0.3618,98007.0,98006.0,0.07376]
[1739275548861,0.2040222,98005.0,98004.0,0.0728]
[1739275549256,0.3618,98007.0,98000.0,0.1]
[1739275549454,0.2040276,98002.0,98000.0,0.1]
[1739275549854,0.3608,98001.0,98000.0,0.1]
[1739275550055,0.3932,98001.0,98000.0,0.1]
[1739275551456,0.3942,98001.0,98000.0,0.1]
[1739275551652,0.3952,98001.0,98000.0,0.1]
[1739275556177,0.5992292,98001.0,98000.0,0.1]
[1739275559474,0.3952,98001.0,97990.0,0.00204102]
[1739275559678,0.5648501,97991.0,97990.0,0.00204102]
[1739275561175,0.5658501,97991.0,97990.0,0.00204102]
[1739275562480,0.5678501,97991.0,97990.0,0.00204102]
[1739275568587,0.5760101,97991.0,97990.0,0.00204102]
[1739275569782,0.5750101,97991.0,97990.0,0.00204102]
[1739275570480,0.5740101,97991.0,97990.0,0.00204102]
[1739275572690,0.36996,97991.0,97990.0,0.00204102]
[1739275577485,0.00916,97991.0,97990.0,0.00204102]
[1739275577686,0.00015302,98000.0,97990.0,0.30204102]
[1739275577887,0.00015302,98000.0,97999.0,0.5648334]
[1739275578191,0.00015302,98000.0,97999.0,2.1370734]
[1739275579686,0.00215302,98000.0,97999.0,2.1370734]
[1739275580583,0.15206893,98007.0,98006.0,0.2040188]
[1739275580783,0.15206893,98007.0,97999.0,1.93304]
[1739275580784,0.18248272,98014.0,98013.0,0.2040043]
[1739275581090,0.21149332,98028.0,98012.0,0.2040057]
[1739275581294,0.21149332,98028.0,98011.0,0.3608]
[1739275581295,0.21149332,98028.0,98018.0,0.2039929]
[1739275581491,0.21149332,98028.0,98019.0,0.07232]
[1739275582591,0.3798,98024.0,98019.0,0.07232]
[1739275583589,0.38796,98024.0,98019.0,0.07232]
[1739275584289,0.38596,98024.0,98019.0,0.07232]
[1739275584595,0.38396,98024.0,98019.0,0.07232]
[1739275584894,0.37296,98024.0,98019.0,0.07232]
[1739275586989,0.37396,98024.0,98019.0,0.08470152]
[1739275588602,0.01316,98024.0,98022.0,0.2039835]
[1739275589095,0.01316,98024.0,98023.0,1.5]
[1739275590800,0.00816,98024.0,98023.0,1.5]
[1739275591095,0.01616,98024.0,98023.0,1.5]
[1739275591692,0.01716,98024.0,98023.0,1.5]
[1739275592993,0.3608,98056.0,98055.0,0.2039169]
[1739275593196,0.3608,98056.0,98055.0,0.2760369]
[1739275593394,0.3608,98067.0,98066.0,0.203894]
[1739275593999,0.21149332,98071.0,98067.0,0.2038902]
[1739275594214,0.21149332,98071.0,98064.0,0.3608]
[1739275594215,0.21149332,98071.0,98069.0,0.2038871]
[1739275594495,0.21149332,98071.0,98070.0,0.07212]
[1739275595093,0.21149332,98071.0,98070.0,1.57212]
[1739275595289,0.004,98071.0,98070.0,1.5]
[1739275595498,0.004,98071.0,98070.0,0.07208]
[1739275596921,0.015,98071.0,98070.0,0.07308]
[1739275597593,0.015,98071.0,98070.0,0.001]
[1739275597999,0.053,98071.0,98070.0,0.001]
[1739275603501,0.015,98071.0,98070.0,0.2048857]
[1739275603702,0.0504,98094.0,98070.0,0.3618]
[1739275603901,0.0504,98094.0,98081.0,0.2038628]
[1739275604107,0.2038401,98092.0,98081.0,0.2758628]
[1739275604314,0.2038427,98091.0,98081.0,1.7758628]
[1739275604994,0.2038427,98091.0,98081.0,1.572]
[1739275604995,0.3718,98082.0,98081.0,1.572]
[1739275605199,0.3788,98082.0,98081.0,1.572]
[1739275606409,0.3678,98082.0,98081.0,1.572]
[1739275606703,0.3828,98082.0,98081.0,1.573]
[1739275607009,0.3828,98082.0,98081.0,0.073]
[1739275608006,0.3828,98082.0,98081.0,0.07272]
[1739275608007,0.39095,98082.0,98081.0,0.07272]
[1739275609211,0.39095,98082.0,98081.0,0.08493683]
[1739275609707,0.5948107,98082.0,98081.0,0.001]
[1739275611401,0.2039085,98060.0,98046.0,0.2039345]
[1739275611597,0.0509671,98079.0,98046.0,0.2039345]
[1739275611598,0.2039104,98059.0,98058.0,0.0716]
[1739275611803,0.2574104,98059.0,98058.0,0.0716]
[1739275612814,0.0535,98059.0,98058.0,0.0716]
[1739275613309,0.0535,98059.0,98058.0,0.07168]
[1739275613519,0.0545,98059.0,98058.0,0.07168]
[1739275616312,0.0545,98059.0,98052.0,1.50052]
[1739275616514,0.0545,98059.0,98058.0,0.07152]
[1739275618611,0.0535,98059.0,98058.0,0.07152]
[1739275619519,0.0545,98059.0,98058.0,0.07152]
[1739275623416,0.20389,98058.0,98057.0,0.00015302]
[1739275624121,0.0545,98059.0,98057.0,1.50015302]
[1739275625021,0.0535,98059.0,98057.0,0.00115302]
[1739275628217,0.055,98060.0,98057.0,0.00115302]
[1739275629427,0.2038932,98059.0,98057.0,0.00115302]
[1739275629628,0.055,98060.0,98057.0,0.00115302]
[1739275631732,0.2589078,98060.0,98057.0,0.00115302]
[1739275633025,0.2039088,98059.0,98057.0,0.00115302]
[1739275638225,0.2039088,98059.0,98057.0,0.00015302]
[1739275638830,0.2049088,98059.0,98057.0,0.00015302]
[1739275640435,0.2049088,98059.0,98057.0,0.00115302]
[1739275640836,0.2039088,98059.0,98057.0,0.00115302]
[1739275641141,0.2039088,98059.0,98057.0,0.00015302]
[1739275641842,0.001,98059.0,98057.0,0.20406532]
[1739275642041,0.001,98059.0,98058.0,0.0582]
[1739275642539,0.3608,98066.0,98058.0,0.24120373]
[1739275642726,0.001,98059.0,98058.0,0.44511413]
[1739275642929,0.00015293,98068.0,98067.0,0.2038917]
[1739275643640,0.00015293,98068.0,98067.0,1.7581917]
[1739275644432,0.00215293,98068.0,98067.0,1.7581917]
[1739275645143,0.00215293,98068.0,98067.0,1.7591917]
[1739275645144,0.00915293,98068.0,98067.0,1.7591917]
[1739275648944,0.00915293,98068.0,98067.0,1.7711384]
[1739275649139,0.00152993,98080.0,98067.0,1.5672467]
[1739275649348,0.00152993,98080.0,98075.0,0.2038749]
[1739275649558,0.00152993,98080.0,98076.0,0.07008]
[1739275650253,0.00852993,98080.0,98076.0,0.07008]
[1739275650758,0.01352993,98080.0,98076.0,0.07008]
[1739275651254,0.01552993,98080.0,98076.0,0.07108]
[1739275651461,0.02052993,98080.0,98076.0,0.07108]
[1739275653053,0.019,98080.0,98079.0,0.2038668]
[1739275654156,0.36095293,98088.0,98086.0,0.2038512]
[1739275655361,0.37595293,98088.0,98086.0,0.2048512]
[1739275656459,0.37595293,98088.0,98087.0,0.06976]
[1739275656661,0.38195293,98088.0,98087.0,0.06976]
[1739275657556,0.37595293,98088.0,98087.0,0.06976]
[1739275657764,0.36295293,98088.0,98087.0,0.07176]
[1739275658457,0.36295293,98088.0,98087.0,0.07076]
[1739275659756,0.36595293,98088.0,98087.0,0.06976]
[1739275662468,0.36595293,98088.0,98087.0,0.08178257]
[1739275662672,0.56980063,98088.0,98087.0,0.08178257]
[1739275665070,0.56980063,98088.0,98087.0,0.06976]
[1739275666069,0.2038691,98078.0,98077.0,0.00015293]
[1739275666263,0.2038691,98078.0,98077.0,0.08151388]
[1739275667170,0.2058691,98078.0,98077.0,0.01211388]
[1739275667963,0.2078691,98078.0,98077.0,0.00015293]
[1739275674677,0.9294691,98078.0,98077.0,0.00015293]
[1739275675380,0.203905,98061.0,98059.0,0.00152944]
[1739275675679,0.3608,98060.0,98059.0,0.00152944]
[1739275676489,0.3608,98060.0,98059.0,0.01552944]
[1739275676873,0.5647071,98060.0,98059.0,0.01552944]
[1739275677077,0.5647071,98060.0,98059.0,0.014]
[1739275680192,0.5647071,98060.0,98059.0,0.02600506]
[1739275698500,0.5647071,98060.0,98059.0,0.014]
[1739275699005,0.2039113,98058.0,98057.0,0.18300705]
[1739275699201,0.2039237,98052.0,98051.0,0.24400941]
[1739275699399,0.5647237,98052.0,98051.0,0.24400941]
[1739275700906,0.2039383,98045.0,98044.0,0.30395575]
[1739275701202,0.3608,98045.0,98036.0,0.3647469]
[1739275701396,0.5647549,98037.0,98036.0,0.3647469]
[1739275701592,0.5647549,98037.0,98020.0,0.06856]
[1739275701593,0.2039736,98028.0,98027.0,0.2447338]
[1739275701907,0.7826736,98028.0,98027.0,0.2447338]
[1739275702992,0.7836736,98028.0,98027.0,0.2457338]
[1739275704208,0.7846736,98028.0,98027.0,0.2607338]
[1739275706013,0.7846736,98028.0,98027.0,0.016]
[1739275706399,0.7836736,98028.0,98027.0,0.015]
[1739275706600,0.7846736,98028.0,98027.0,0.02]
[1739275707005,0.78463356,98028.0,98027.0,0.02]
[1739275707201,0.78463356,98028.0,98027.0,0.018]
[1739275711104,0.5807,98028.0,98018.0,0.00015302]
[1739275711411,0.5647924,98019.0,98018.0,0.00015302]
[1739275711712,0.7826924,98019.0,98018.0,0.00015302]
[1739275712710,0.7836924,98019.0,98018.0,0.00515302]
[1739275713303,0.7836924,98019.0,98018.0,0.01615302]
[1739275714012,0.7846924,98019.0,98018.0,0.01599383]
[1739275717910,0.7928524,98019.0,98018.0,0.01599383]
[1739275721712,0.7918524,98019.0,98018.0,0.011]
[1739275722817,0.2039944,98012.0,98011.0,0.01154382]
[1739275723005,0.2039944,98012.0,98010.0,0.2040087]
[1739275723314,0.3608,98011.0,98010.0,0.2040087]
[1739275723912,0.2040046,98010.0,98009.0,0.01183556]
[1739275726816,0.2040046,98010.0,98009.0,0.01883556]
[1739275727117,0.2050046,98010.0,98009.0,0.01883556]
[1739275732920,0.001,98010.0,97990.0,0.00204102]
[1739275733109,0.9256475,97991.0,97990.0,0.00204102]
[1739275733516,0.9338075,97991.0,97990.0,0.00204102]
[1739275736015,0.9408075,97991.0,97990.0,0.00204102]
[1739275736820,0.9398075,97991.0,97990.0,0.00204102]
[1739275737031,0.9378075,97991.0,97990.0,0.00204102]
[1739275738822,0.5770075,97991.0,97990.0,0.00204102]
[1739275739524,0.5760075,97991.0,97990.0,0.00204102]
[1739275741622,0.5760075,97991.0,97971.0,0.259388]
[1739275741623,0.37196,97991.0,97971.0,0.259388]
[1739275741930,0.204073,97979.0,97972.0,0.06876]
[1739275742425,0.2040757,97978.0,97972.0,0.06876]
[1739275742628,0.2040757,97978.0,97974.0,0.06770287]
[1739275743122,0.001,97979.0,97975.0,0.003]
[1739275744426,0.5655064,97982.0,97974.0,0.06770287]
[1739275744625,0.001,97978.0,97974.0,0.07070287]
[1739275746626,0.56546641,97982.0,97974.0,0.06770287]
[1739275746826,0.001,97979.0,97975.0,0.003]
[1739275747831,0.001,97978.0,97974.0,0.07070287]
[1739275749624,0.2040711,97980.0,97974.0,0.07070287]
[1739275749625,0.001,97979.0,97975.0,0.003]
[1739275750529,0.001,97978.0,97974.0,0.07070287]
[1739275751727,0.001,97979.0,97975.0,0.003]
[1739275753431,0.001,97978.0,97974.0,0.07070287]
[1739275754031,0.2040711,97980.0,97974.0,0.06770287]
[1739275754232,0.001,97979.0,97975.0,0.002]
[1739275755023,0.001,97978.0,97974.0,0.07070287]
[1739275756332,0.001,97978.0,97977.0,0.2040776]
[1739275756529,0.001,97979.0,97976.0,0.2040797]
[1739275756834,0.001,97979.0,97978.0,0.2040755]
[1739275757333,0.001,97978.0,97977.0,0.2060776]
[1739275757935,0.36896,97991.0,97990.0,0.2040505]
[1739275758136,0.36896,97991.0,97990.0,0.2726905]
[1739275760233,0.36996,97991.0,97990.0,0.2726905]
[1739275760622,0.37596,97991.0,97990.0,0.2726905]
[1739275761529,0.37596,97991.0,97990.0,0.06864]
[1739275762537,0.01516,97991.0,97990.0,0.06864]
[1739275766838,0.01516,97991.0,97990.0,0.07998517]
[1739275769443,0.00015302,98000.0,97990.0,0.44078517]
[1739275769645,0.00015302,98000.0,97999.0,0.2040258]
[1739275770032,0.00015302,98000.0,97999.0,1.7040258]
[1739275770742,0.00615302,98000.0,97999.0,1.7040258]
[1739275770939,0.01015302,98000.0,97999.0,1.7040258]
[1739275772244,0.01515302,98000.0,97999.0,1.7050258]
[1739275773941,0.15217679,98021.0,98006.0,0.23995504]
[1739275774141,0.15217679,98021.0,98007.0,0.49034]
[1739275774446,0.15217679,98021.0,98017.0,0.203989]
[1739275774643,0.15217679,98021.0,98007.0,0.49034]
[1739275774837,0.15217679,98021.0,98010.0,0.11997752]
[1739275775248,0.16617679,98021.0,98019.0,0.203985]
[1739275775444,0.17217679,98021.0,98019.0,0.203985]
[1739275775748,0.02,98021.0,98019.0,0.203985]
[1739275776048,0.021,98021.0,98019.0,0.203985]
[1739275776251,0.021,98021.0,98020.0,1.5]
[1739275776747,0.006,98021.0,98020.0,1.5]
[1739275777051,0.022,98021.0,98020.0,1.5]
[1739275777648,0.015,98021.0,98020.0,1.501]
[1739275778348,0.0001531,98024.0,98020.0,1.501]
[1739275778551,0.0001531,98024.0,98023.0,0.2039768]
[1739275780245,0.0011531,98024.0,98023.0,0.2039768]
[1739275781450,0.0031531,98024.0,98023.0,0.2039768]
[1739275785559,0.0031531,98024.0,98021.0,0.06868]
[1739275785748,0.0031531,98024.0,98022.0,0.06844]
[1739275785943,0.0031531,98024.0,98019.0,0.01125971]
[1739275786258,0.3608,98020.0,98006.0,0.3608]
[1739275786443,0.204009,98008.0,97999.0,0.2040264]
[1739275786650,0.3608,98008.0,97990.0,0.11997752]
[1739275786858,0.2040142,98005.0,98002.0,0.06844]
[1739275787358,0.179,98007.0,97970.0,0.11997752]
[1739275787553,0.3608,97980.0,97979.0,0.06997078]
[1739275787753,0.3608,97980.0,97979.0,0.00153078]
[1739275788055,0.3608,97980.0,97979.0,0.0813589]
[1739275788265,0.3608,97980.0,97979.0,0.06997078]
[1739275788456,0.3608,97980.0,97979.0,0.08497078]
[1739275788758,0.3608,97980.0,97979.0,0.08493078]
[1739275789256,0.3608,97980.0,97979.0,0.07493078]
[1739275789649,0.3608,97980.0,97979.0,0.07693078]
[1739275791255,0.3608,97980.0,97979.0,0.0754]
[1739275792646,0.3608,97980.0,97979.0,0.08673218]
[1739275798458,0.3608,97983.0,97979.0,0.08673218]
[1739275799455,0.3608,97983.0,97979.0,0.08173218]
[1739275799660,0.3608,97983.0,97979.0,0.08673218]
[1739275802061,0.1176,97985.0,97979.0,0.08673218]
[1739275802261,0.3608,97983.0,97979.0,0.08673218]
[1739275802458,0.3608,97983.0,97979.0,0.01833218]
[1739275802662,0.2040645,97981.0,97980.0,0.06816]
[1739275803282,0.2040645,97981.0,97979.0,0.01833218]
[1739275803454,0.3608,97983.0,97979.0,0.01833218]
[1739275803659,0.0001531,97989.0,97979.0,0.01833218]
[1739275803863,0.0001531,97989.0,97988.0,0.2040498]